bitfinex/quotes_ETHUSD_20250715
["timestamp","ask_amount","ask_price","bid_price","bid_amount"]
[1752587879847,5.739,3057.5,3057.2,1.0701]
[1752587880187,1.0705,3058.9,3058.1,1.0701]
[1752587880355,0.1632,3058.5,3058.1,1.0701]
[1752587880562,35.738,3058.4,3057.1,4.34117389]
[1752587880763,0.1632,3058.1,3057.6,3.43370187]
[1752587880971,10.0,3057.9,3057.6,3.43370187]
[1752587881279,10.0,3057.7,3057.1,1.0701]
[1752587881440,5.737,3057.8,3057.1,1.0701]
[1752587881441,5.737,3057.6,3057.2,3.43410236]
[1752587881644,5.9002,3057.6,3057.1,4.34113613]
[1752587882355,5.9002,3057.6,3057.1,1.0701]
[1752587882559,0.1632,3057.6,3057.1,1.0701]
[1752587882794,0.1632,3057.6,3057.5,3.27064595]
[1752587883093,5.735,3057.9,3057.7,3.27038364]
[1752587883282,10.0,3058.1,3058.0,3.27004215]
[1752587883629,5.735,3058.5,3058.4,3.26959641]
[1752587883961,1.0215,3059.2,3058.7,3.2693628]
[1752587884157,30.1632,3059.1,3058.6,0.1632]
[1752587884381,0.1632,3059.1,3059.0,3.26904217]
[1752587884767,5.733,3059.2,3059.1,3.2689353]
[1752587885163,0.1632,3059.3,3059.2,3.26882845]
[1752587885373,5.732,3059.3,3059.2,3.26882845]
[1752587885666,5.732,3059.3,3059.1,3.26893427]
[1752587885667,5.732,3059.3,3059.0,3.43219421]
[1752587885878,5.732,3059.3,3059.0,0.1632]
[1752587885879,10.0,3059.2,3059.0,0.1632]
[1752587886059,1.5732,3059.2,3058.6,3.26940037]
[1752587886263,13.43205012,3059.2,3058.7,3.26935814]
[1752587886462,13.43205012,3059.2,3058.7,3.269356]
[1752587886770,13.43205012,3059.2,3058.6,0.1632]
[1752587886771,13.43205012,3059.2,3058.6,3.43262158]
[1752587886969,10.1632,3059.2,3058.7,3.2693081]
[1752587887176,10.1632,3059.2,3058.8,3.26922794]
[1752587887376,10.1632,3059.2,3058.7,3.26933912]
[1752587887377,13.43205142,3059.2,3058.7,3.26933912]
[1752587887590,13.43205142,3059.2,3058.6,3.43264022]
[1752587887790,10.1632,3059.2,3058.6,0.1632]
[1752587888392,5.728,3059.1,3058.8,3.26915092]
[1752587888607,10.0,3059.0,3058.9,3.26914904]
[1752587888791,10.0,3059.0,3058.8,3.2692504]
[1752587889108,10.0,3059.0,3058.8,3.26921202]
[1752587889312,10.0,3059.0,3058.9,3.26914904]
[1752587890103,5.726,3059.1,3058.6,0.03269469]
[1752587890310,5.726,3059.1,3059.0,3.26898684]
[1752587890602,0.1632,3059.4,3058.8,0.1632]
[1752587890787,10.0,3059.2,3059.1,3.26884966]
[1752587890997,5.725,3059.2,3059.0,0.1632]
[1752587891391,10.0,3059.1,3058.8,3.43242788]
[1752587891793,10.0,3059.1,3058.8,3.4324049]
[1752587892125,10.0,3059.1,3058.9,3.26914163]
[1752587892424,10.0,3059.1,3058.9,3.26912435]
[1752587892784,10.0,3059.1,3058.8,3.43244389]
[1752587892984,10.0,3059.1,3059.0,3.26904217]
[1752587893292,10.0,3059.1,3058.9,3.26911799]
[1752587893492,10.0,3059.1,3058.8,3.43240628]
[1752587893690,10.0,3059.1,3058.8,0.1632]
[1752587894003,3.26834788,3059.7,3059.1,3.26885207]
[1752587894195,3.26863519,3059.4,3058.8,3.26919149]
[1752587894521,3.26863519,3059.4,3058.5,1.0258]
[1752587894522,5.72,3059.3,3058.9,3.26905614]
[1752587894690,10.0,3059.2,3058.5,1.0258]
[1752587894895,10.0,3059.0,3058.5,1.0258]
[1752587895123,10.0,3059.0,3058.6,3.26940003]
[1752587895305,11.572,3059.0,3058.5,1.0258]
[1752587895512,10.0,3059.0,3058.7,3.26926345]
[1752587895681,10.0,3059.0,3058.8,3.26921332]
[1752587896018,10.0,3059.0,3058.5,1.0258]
[1752587896218,10.0,3059.0,3058.9,3.26914904]
[1752587896439,10.0,3059.0,3058.8,3.26920291]
[1752587896729,10.0,3059.0,3058.9,3.26914904]
[1752587897079,10.0,3059.0,3058.8,3.2691613]
[1752587897314,10.0,3059.0,3058.9,3.26914904]
[1752587897815,10.0,3059.5,3059.0,3.26894932]
[1752587898016,1.36966139,3059.5,3059.1,3.26884912]
[1752587898237,10.0,3059.3,3059.2,3.26872331]
[1752587898398,1.0249,3060.2,3059.2,1.0602]
[1752587898601,1.0249,3060.2,3059.3,3.26865352]
[1752587898602,10.0,3059.8,3059.3,3.26865352]
[1752587898803,10.0,3059.6,3058.6,5.715]
[1752587898999,10.0,3059.4,3059.2,3.26875325]
[1752587899245,10.0,3059.9,3059.1,0.03268935]
[1752587899531,10.0,3059.6,3058.9,1.018]
[1752587899736,10.0,3059.4,3059.0,3.26897872]
[1752587899937,10.0,3059.4,3059.1,3.26883074]
[1752587900117,10.0,3059.4,3058.9,1.018]
[1752587900118,5.713,3059.3,3058.9,1.018]
[1752587900429,48.25853231,3059.2,3058.2,1.0793]
[1752587900627,10.0,3058.6,3058.1,3.26992861]
[1752587900789,10.0,3058.8,3058.2,3.26989024]
[1752587900790,10.0,3058.4,3058.2,3.26989024]
[1752587900989,15.712,3058.4,3058.3,3.2697904]
[1752587901325,11.52738089,3059.2,3058.3,3.59676848]
[1752587901326,10.0,3058.7,3058.3,3.59676848]
[1752587901526,5.711,3058.6,3057.9,1.0793]
[1752587901729,5.711,3058.6,3058.0,0.03270111]
[1752587901929,5.71,3058.5,3058.0,0.03270111]
[1752587902131,5.71,3058.7,3058.5,3.26952775]
[1752587902429,5.71,3058.7,3058.4,3.26964075]
[1752587902819,5.71,3058.7,3058.0,0.03270111]
[1752587903126,5.71,3058.7,2912.0,0.30215909]
[1752587903127,3.26966588,3058.5,3057.3,3.2708599]
[1752587903301,10.0,3058.3,3057.7,3.27033654]
[1752587903500,10.0,3058.1,3057.8,3.27026638]
[1752587903708,15.709,3058.0,3057.9,3.27021812]
[1752587903904,15.708,3058.0,3057.9,3.27021812]
[1752587905216,10.0,3058.0,3057.9,3.27021812]
[1752587905435,15.706,3058.0,3057.9,3.27021812]
[1752587906518,10.0,3058.0,3057.9,3.27021812]
[1752587906828,15.705,3058.0,3057.8,3.27027733]
[1752587907226,15.705,3058.0,3057.8,3.27025092]
[1752587907629,45.84364813,3057.9,3057.1,3.27204178]
[1752587907797,10.0,3057.7,3057.5,3.27057361]
[1752587908004,15.703,3057.6,3057.4,3.2707099]
[1752587908199,1.5705,3057.9,3057.2,3.27096689]
[1752587908455,1.0397,3058.3,3057.8,3.27026517]
[1752587908456,0.1632,3058.1,3057.8,3.27026517]
[1752587908614,10.0,3057.9,3057.7,3.2703925]
[1752587908819,0.1632,3058.1,3058.0,3.27011118]
[1752587909150,15.702,3058.1,3058.0,3.27011118]
[1752587909298,15.702,3058.1,3057.7,0.1632]
[1752587909497,15.702,3058.1,3057.6,0.03270538]
[1752587909498,10.0,3058.1,3058.0,3.27011118]
[1752587909816,15.702,3058.1,3058.0,3.27011118]
[1752587910222,15.701,3058.1,3058.0,3.27011118]
[1752587910426,10.0,3058.1,3058.0,3.27011118]
[1752587910624,15.701,3058.1,3058.0,3.27011118]
[1752587910835,10.0,3058.1,3057.9,3.43336872]
[1752587911039,5.7,3058.0,3057.9,3.43336872]
[1752587911342,10.0,3058.1,3057.8,3.27025791]
[1752587911512,5.7,3058.0,3057.9,3.27021812]
[1752587911903,10.1632,3058.1,3058.0,3.27011118]
[1752587912105,15.8622,3058.1,3057.9,3.27017255]
[1752587912311,5.698,3058.0,3057.8,3.27025955]
[1752587912509,5.698,3058.0,3057.6,0.1632]
[1752587913024,5.698,3058.0,3057.7,3.27038822]
[1752587913348,7.28412,3058.0,3057.7,3.27038822]
[1752587913504,11.0413,3057.9,3057.1,0.001]
[1752587913705,10.1632,3057.7,3057.4,3.27065646]
[1752587913909,5.697,3057.6,3057.4,3.27065646]
[1752587914548,15.697,3057.6,3057.1,0.1642]
[1752587914716,8.25853231,3057.2,3057.1,0.001]
[1752587914921,5.695,3057.2,3057.1,0.001]
[1752587915104,15.695,3057.2,3057.1,0.001]
[1752587915505,15.695,3057.2,3057.1,3.27207389]
[1752587915712,4.31158365,3057.9,3057.1,3.27207389]
[1752587915713,11.04995038,3058.6,3057.2,1.0674]
[1752587915923,0.1632,3058.0,3057.2,1.10010966]
[1752587916142,15.694,3057.9,3057.8,3.27032507]
[1752587916452,1.0958,3057.7,3057.2,3.27096689]
[1752587916637,10.0,3057.5,3057.2,3.27088216]
[1752587916953,5.693,3057.4,3057.2,3.27096689]
[1752587917110,5.693,3057.4,3057.3,3.2708599]
[1752587917310,5.693,3057.4,3057.1,0.001]
[1752587917755,10.0,3057.3,3057.1,0.001]
[1752587918074,15.692,3057.2,3057.1,0.001]
[1752587919627,18.96296689,3057.2,3057.1,0.001]
[1752587919820,15.692,3057.2,3057.1,0.001]
[1752587920241,18.96296689,3057.2,3057.1,0.001]
[1752587920447,58.27005573,3057.2,3057.1,0.001]
[1752587920652,61.62671787,3057.2,3057.1,0.001]
[1752587920856,61.62271787,3057.2,3057.1,0.001]
[1752587921456,20.07976214,3057.2,3057.1,0.001]
[1752587921635,47.66272903,3057.2,3057.1,0.001]
[1752587921961,53.35072903,3057.2,3057.1,0.001]
[1752587922857,47.66272903,3057.2,3057.1,0.001]
[1752587923061,53.34972903,3057.2,3057.1,0.001]
[1752587924352,47.66272903,3057.2,3057.1,0.001]
[1752587924564,53.34772903,3057.2,3057.1,0.001]
[1752587925028,13.82107389,3057.1,3057.0,0.001]
[1752587925228,13.27150194,3056.7,3056.6,0.001]
[1752587925476,27.22749078,3056.7,3056.6,0.001]
[1752587925773,5.684,3056.9,3056.6,1.0343]
[1752587926060,3.27150194,3056.7,3056.6,0.001]
[1752587926363,13.43490097,3056.6,3055.9,4.30560098]
[1752587926665,0.1632,3056.3,3055.9,4.30557561]
[1752587926869,10.0,3056.1,3055.9,4.30557561]
[1752587927029,0.1632,3056.3,3056.0,3.2722513]
[1752587927231,10.0,3056.1,3056.0,3.2722513]
[1752587927431,10.0,3056.1,3055.9,4.30561408]
[1752587927652,5.682,3056.0,3055.8,3.2724392]
[1752587927924,13.43515117,3056.3,3055.7,3.43672204]
[1752587928156,10.0,3056.1,3055.7,0.001]
[1752587928351,10.0,3055.9,3055.7,0.001]
[1752587928554,15.681,3055.8,3055.7,0.001]
[1752587929133,50.20226547,3055.8,3055.7,0.001]
[1752587929324,11.2488,3055.8,3055.7,0.001]
[1752587929527,11.2488,3055.8,3055.7,3.27357256]
[1752587929528,5.68,3055.8,3055.7,3.27357256]
[1752587929851,0.1632,3056.2,3056.1,3.27214423]
[1752587930048,15.8432,3056.2,3056.1,3.27214423]
[1752587930580,10.1632,3056.2,3056.1,3.27214423]
[1752587930877,15.679,3056.2,3056.1,3.27214423]
[1752587931075,5.679,3056.2,3056.0,3.4354513]
[1752587931231,5.679,3056.2,3056.1,3.27214423]
[1752587931431,0.1632,3056.6,3056.5,3.27171601]
[1752587932481,5.677,3056.6,3056.5,3.27171601]
[1752587932767,15.677,3056.6,3056.5,3.27171601]
[1752587933268,0.1632,3056.8,3056.5,3.27171601]
[1752587933444,0.1632,3057.2,3056.7,3.27150194]
[1752587933645,0.1632,3057.2,3057.1,3.27107389]
[1752587933881,5.8392,3057.2,3057.1,3.27107389]
[1752587934176,15.8392,3057.2,3057.1,3.27107389]
[1752587934664,5.8392,3057.2,3057.1,3.27107389]
[1752587935167,5.8392,3057.2,3056.9,3.271182]
[1752587935168,6.07893118,3057.2,3057.0,3.2711046]
[1752587935368,6.07893118,3057.2,3057.0,3.27118089]
[1752587935369,10.0,3057.1,3057.0,3.27118089]
[1752587936269,6.07893118,3057.2,3057.0,3.27118089]
[1752587936270,0.1632,3057.2,3057.1,3.27107389]
[1752587936432,0.1632,3057.2,3057.0,0.1632]
[1752587936433,5.673,3057.2,3057.0,0.1632]
[1752587936633,10.0,3057.1,3056.9,3.2712113]
[1752587936871,5.91506462,3057.2,3056.9,3.2712113]
[1752587936872,15.673,3057.0,3056.9,3.2712113]
[1752587938091,0.1632,3057.3,3057.2,3.27096689]
[1752587938265,1.0905,3057.7,3056.8,3.27139471]
[1752587938266,0.1632,3057.6,3057.3,3.27081879]
[1752587938472,10.0,3057.4,3057.3,3.27081879]
[1752587939085,0.4119211,3057.6,3057.3,3.27081879]
[1752587939250,0.4119211,3057.6,3056.9,0.1632]
[1752587939436,10.0,3057.4,3057.3,3.27076427]
[1752587939889,10.0,3057.4,3057.3,3.2708599]
[1752587940550,10.0,3057.4,3057.2,3.27091409]
[1752587940758,15.668,3057.3,3057.2,3.27091409]
[1752587941341,10.0,3057.3,3057.2,3.27096689]
[1752587941557,15.668,3057.3,3057.2,3.27096689]
[1752587941887,10.0,3057.3,3057.0,3.27117572]
[1752587942097,11.0846,3057.2,3056.9,0.1632]
[1752587942241,0.1632,3056.9,3056.3,3.27193011]
[1752587942443,0.1632,3056.9,3056.6,3.27152762]
[1752587942647,5.665,3056.8,3056.7,3.27150194]
[1752587942854,0.1632,3056.9,3056.7,3.27150194]
[1752587943057,5.665,3056.8,3056.5,3.43490494]
[1752587943259,5.665,3056.8,3056.7,3.27150194]
[1752587943456,5.665,3056.8,3056.6,3.27155594]
[1752587943883,5.663,3056.7,3056.6,3.27155594]
[1752587944271,0.1632,3056.9,3056.5,0.1632]
[1752587944583,5.8262,3056.9,3056.6,1.0284]
[1752587944883,5.8262,3056.9,3056.7,3.27149187]
[1752587945094,5.8262,3056.9,3056.6,4.29998107]
[1752587945286,5.8262,3056.9,3056.6,1.0284]
[1752587945476,5.662,3056.8,3056.6,4.29995648]
[1752587946384,5.662,3056.8,3056.6,4.30000373]
[1752587946588,10.0,3056.7,3056.5,0.1632]
[1752587946751,10.0,3056.5,3056.3,4.36997046]
[1752587947084,10.0,3056.5,3056.3,4.53317046]
[1752587947583,5.66,3056.4,3056.3,3.27193011]
[1752587947787,5.66,3056.4,3056.2,3.2719916]
[1752587947990,5.66,3056.4,3056.3,3.27193011]
[1752587948177,1.099,3057.5,3056.4,0.9965]
[1752587948362,0.1632,3057.1,3056.6,3.27160897]
[1752587948572,10.0,3056.9,3056.6,0.1632]
[1752587948888,5.658,3057.0,3056.6,0.1632]
[1752587948889,5.658,3057.0,3056.6,3.43478533]
[1752587949453,10.0,3056.9,3056.6,0.1632]
[1752587949751,10.0,3056.7,3056.4,4.26832139]
[1752587949961,7.387,3056.8,3056.4,4.26832139]
[1752587949962,5.658,3056.6,3056.4,4.26832139]
[1752587950287,5.658,3056.6,3056.4,0.9965]
[1752587950490,5.658,3056.6,3056.4,4.26830665]
[1752587951610,5.658,3056.6,3056.5,3.27171601]
[1752587951905,5.658,3056.6,3056.4,3.27178254]
[1752587952074,5.658,3056.6,3056.3,0.001]
[1752587953008,4.37101089,3056.6,3056.3,0.001]
[1752587953408,4.37101089,3056.6,3056.1,1.0348]
[1752587953409,17.83,3056.5,3056.1,0.1632]
[1752587953613,10.0,3056.2,3054.9,5.652]
[1752587953912,10.0,3056.0,3055.8,0.1632]
[1752587954106,23.482,3055.9,3055.8,0.1632]
[1752587954617,17.83,3055.9,3055.8,3.43566547]
[1752587954799,23.481,3055.9,3055.8,4.10648895]
[1752587955001,23.481,3055.9,3055.8,3.43566547]
[1752587956214,23.481,3055.9,3055.8,0.1632]
[1752587956384,17.83,3055.9,3055.8,3.43566547]
[1752587956588,23.481,3055.9,3055.8,0.1632]
[1752587956804,23.481,3055.9,3055.8,3.43566547]
[1752587957511,23.481,3055.9,3055.8,0.1632]
[1752587958009,23.481,3055.9,3055.8,3.43566547]
[1752587958374,23.477,3055.9,3055.8,3.43566547]
[1752587958579,23.477,3055.9,3055.8,0.1632]
[1752587958781,23.477,3055.9,3055.8,3.43566547]
[1752587958991,17.83,3055.9,3055.8,4.10649923]
[1752587959194,7.83,3056.6,3056.4,3.27175634]
[1752587959394,15.646,3056.5,3056.4,3.27175634]
[1752587959814,10.0,3056.5,3056.4,4.36985634]
[1752587960020,7.83,3056.6,3056.5,3.27171601]
[1752587960175,7.83,3056.9,3056.8,3.27139492]
[1752587960375,23.474,3056.9,3056.8,3.27139492]
[1752587960611,23.474,3056.9,3056.8,3.43459492]
[1752587960791,13.474,3056.9,3056.8,3.43459492]
[1752587960980,23.474,3056.9,3056.8,3.43459492]
[1752587961713,23.474,3056.9,3056.0,5.645]
[1752587961714,17.78587077,3056.9,3055.1,0.001]
[1752587962016,10.0,3056.1,3055.5,0.1632]
[1752587962331,10.80122351,3055.6,3055.5,0.1632]
[1752587962479,10.80122351,3055.6,3055.1,0.001]
[1752587962480,10.0,3055.5,3055.1,0.001]
[1752587962685,10.0,3055.3,3055.1,0.001]
[1752587962880,15.642,3055.2,3055.1,0.001]
[1752587963510,27.53520505,3055.2,3055.1,0.001]
[1752587963712,3.27356121,3054.8,3053.9,1.0626]
[1752587963906,11.2619,3055.1,3054.2,0.1632]
[1752587964110,10.1632,3054.9,3054.4,0.1632]
[1752587964284,10.0,3054.7,3054.4,0.1632]
[1752587964499,10.0,3054.5,3054.4,0.1632]
[1752587964912,5.64,3054.5,3054.4,0.1632]
[1752587965113,15.64,3054.5,3054.4,0.1632]
[1752587965510,10.0,3054.5,3054.4,0.1632]
[1752587965832,15.639,3054.5,3054.4,0.1632]
[1752587966191,10.0,3054.5,3054.4,0.1632]
[1752587966629,15.639,3054.5,3054.4,0.1632]
[1752587967030,23.469,3054.5,3054.4,0.1632]
[1752587967728,17.83,3054.5,3054.4,0.1632]
[1752587967928,23.468,3054.5,3054.4,0.1632]
[1752587968131,17.83,3054.5,3054.4,0.1632]
[1752587968432,10.0,3054.4,3053.9,1.0626]
[1752587968733,9.613,3054.5,3054.0,0.1632]
[1752587968891,15.636,3054.4,3054.0,0.1632]
[1752587969628,10.0,3054.4,3054.0,3.43757918]
[1752587969832,5.635,3054.3,3054.0,3.43757918]
[1752587970328,5.636,3054.2,3054.1,3.27425774]
[1752587970547,5.636,3054.2,3054.1,3.43745774]
[1752587970852,5.635,3054.2,3054.1,0.1632]
[1752587971028,10.0,3054.4,3054.3,3.27407261]
[1752587971197,5.635,3054.4,3054.2,3.27417981]
[1752587971395,7.83,3054.5,3054.3,0.1632]
[1752587971617,7.83,3054.5,3054.4,3.27396542]
[1752587971848,1.0549,3055.4,3054.5,3.27385824]
[1752587971997,5.7962,3055.3,3054.5,3.27385824]
[1752587972190,6.04532084,3055.3,3054.8,0.1632]
[1752587972404,5.633,3055.2,3054.8,0.1632]
[1752587972609,5.633,3055.1,3054.8,0.1632]
[1752587972895,0.32557287,3055.3,3054.8,0.1632]
[1752587973307,10.0,3055.1,3054.8,0.1632]
[1752587973490,5.632,3055.0,3054.8,0.1632]
[1752587973923,5.632,3054.9,3054.8,0.1632]
[1752587975416,0.32557287,3055.3,3054.8,0.1632]
[1752587975732,8.90411212,3055.2,3054.8,0.1632]
[1752587975901,10.0,3055.1,3054.8,0.1632]
[1752587976101,5.629,3055.0,3054.8,0.1632]
[1752587976722,0.32557287,3055.3,3054.8,0.1632]
[1752587976926,0.32557287,3055.3,3054.8,3.4366705]
[1752587977126,10.0,3055.1,3054.8,3.4366705]
[1752587977302,0.32557287,3055.3,3054.9,3.27342957]
[1752587977502,5.627,3055.2,3055.0,0.1632]
[1752587977701,5.627,3055.1,3055.0,0.1632]
[1752587977903,10.0,3055.3,3055.0,0.1632]
[1752587978339,5.627,3055.2,3055.0,0.1632]
[1752587980240,10.0,3055.1,3054.4,4.28696838]
[1752587980432,5.626,3055.0,3054.8,0.1632]
[1752587983127,5.621,3054.9,3054.8,0.1632]
[1752587984644,7.83,3055.1,3054.8,0.1632]
[1752587984843,5.619,3055.0,3054.8,0.1632]
[1752587986428,7.83,3055.1,3054.8,0.1632]
[1752587986631,5.616,3055.0,3054.8,0.1632]
[1752587987046,18.6485194,3054.9,3054.4,4.28703905]
[1752587987235,5.616,3054.8,3054.6,0.1632]
[1752587989167,5.613,3054.8,3054.2,3.27414911]
[1752587989378,10.9817194,3055.3,3054.7,4.58924389]
[1752587989653,5.613,3055.2,3054.7,4.58924389]
[1752587989857,5.612,3055.1,3054.7,4.58919698]
[1752587990063,5.612,3055.1,3054.7,1.3156]
[1752587991435,10.8185194,3054.9,3054.7,0.1632]
[1752587991642,5.612,3054.8,3054.7,0.1632]
[1752587992031,10.8185194,3054.9,3054.7,0.1632]
[1752587992233,5.609,3054.8,3054.7,0.1632]
[1752587992775,1.141,3054.7,3054.1,3.27422494]
[1752587992980,10.8185194,3054.5,3054.4,0.1632]
[1752587993688,10.8185194,3054.5,3054.1,0.1632]
[1752587993829,5.608,3054.4,3054.1,0.1632]
[1752587994031,5.608,3054.4,3054.1,3.43747361]
[1752587994341,5.608,3054.4,3054.1,0.1632]
[1752587995260,7.5943479,3054.4,3054.1,0.1632]
[1752587995944,7.5943479,3054.4,3054.1,0.1642]
[1752587997040,1.9863479,3054.4,3054.1,0.1642]
[1752587997245,11.9744194,3054.9,3054.1,0.001]
[1752587997556,0.1632,3054.6,3054.1,0.1642]
[1752587997751,5.603,3054.5,3054.1,0.1642]
[1752587997959,16.4215194,3054.5,3054.1,0.1642]
[1752587998154,0.1632,3054.6,3054.1,0.19694287]
[1752587998485,5.602,3054.5,3054.4,0.1632]
[1752587998826,10.8185194,3054.8,3054.4,3.43716542]
[1752587999026,5.601,3054.7,3054.4,3.43716542]
[1752587999867,5.6,3054.6,3054.4,3.43712093]
[1752588000233,0.1632,3054.9,3054.8,3.27353672]
[1752588000782,5.599,3055.0,3054.9,4.38275454]
[1752588001066,5.599,3055.0,3054.8,0.1632]
[1752588001067,3.27342957,3054.9,3054.8,0.1632]
[1752588001270,10.8185194,3055.0,3054.5,3.27376985]
[1752588001486,10.8185194,3055.0,3054.1,0.001]
[1752588001487,5.598,3054.9,3054.3,3.273976]
[1752588001641,10.8185194,3055.0,3054.3,0.47445261]
[1752588001850,10.002,3055.3,3054.4,0.03273965]
[1752588002044,5.598,3055.2,3054.6,3.27375106]
[1752588002248,5.598,3055.2,3054.6,3.27369475]
[1752588002431,10.002,3055.3,3054.9,3.27336449]
[1752588002633,10.002,3055.3,3055.0,3.27324878]
[1752588002866,0.002,3055.3,3055.1,3.27314322]
[1752588003110,5.599,3055.3,3055.1,3.27314308]
[1752588003416,5.599,3055.3,3055.0,3.27326252]
[1752588003567,16.2704894,3055.3,3054.8,1.0889]
[1752588003768,10.8185194,3054.9,3054.5,1.1205]
[1752588003962,10.8185194,3054.9,3054.3,3.27407261]
[1752588004167,10.8185194,3054.5,3054.2,1.1205]
[1752588004366,10.8185194,3054.5,3054.1,0.001]
[1752588004673,1.1497,3054.4,3054.1,0.001]
[1752588004911,6.7437,3054.4,3054.1,0.001]
[1752588005206,10.8185194,3054.5,3054.1,0.001]
[1752588005405,3.27397709,3054.4,3054.1,0.001]
[1752588005705,5.593,3054.3,3054.1,0.001]
[1752588005908,11.9110194,3054.6,3054.1,0.001]
[1752588006217,5.593,3054.4,3054.1,0.001]
[1752588006379,10.8185194,3054.2,3054.1,0.001]
[1752588006711,11.8997194,3054.6,3054.1,0.001]
[1752588006910,5.592,3054.5,3054.3,3.27403982]
[1752588007108,5.592,3054.5,3054.1,0.001]
[1752588007269,5.592,3054.5,3054.2,3.27409843]
[1752588007621,5.592,3054.5,3054.1,0.001]
[1752588007845,10.8185194,3054.2,3054.1,0.001]
[1752588008048,16.4095194,3054.2,3054.1,0.001]
[1752588008257,10.8185194,3054.2,3054.1,3.27528702]
[1752588008414,16.4085194,3054.2,3054.1,0.001]
[1752588008834,0.49705205,3054.5,3054.1,0.001]
[1752588008835,0.49705205,3054.5,3054.1,3.27528702]
[1752588009040,5.59,3054.4,3054.1,0.001]
[1752588009242,11.8997194,3054.6,3054.1,0.001]
[1752588009446,10.8185194,3054.2,3054.1,0.001]
[1752588009631,16.4075194,3054.2,3054.1,0.001]
[1752588009838,5.589,3054.2,3054.1,3.27528702]
[1752588010300,5.589,3054.2,3054.1,0.001]
[1752588010429,11.3774194,3054.2,3054.1,0.001]
[1752588010770,30.23959921,3054.2,3054.1,0.001]
[1752588011051,11.1586,3054.1,3053.1,4.47056483]
[1752588011209,10.8185194,3053.8,3053.4,0.1632]
[1752588011413,5.587,3053.7,3053.4,3.43819541]
[1752588011647,5.587,3053.7,3053.4,0.1632]
[1752588011811,5.587,3053.7,3053.1,3.2753072]
[1752588011812,7.22755194,3053.7,3053.1,3.2753072]
[1752588012018,7.39075194,3053.7,3053.1,0.1632]
[1752588012211,7.39075194,3053.7,3053.2,3.27525219]
[1752588012418,10.8185194,3053.4,3053.1,3.43852903]
[1752588012633,5.586,3053.3,3053.1,0.1632]
[1752588012847,1.64055194,3053.7,3052.8,0.001]
[1752588013052,1.1154,3053.1,3052.8,0.1642]
[1752588013233,1.1154,3053.1,3051.9,3.27757885]
[1752588013234,11.1154,3052.4,3051.9,3.2776243]
[1752588013550,0.1632,3052.2,3051.9,3.27764733]
[1752588013740,0.23977069,3053.9,3052.0,1.11066539]
[1752588013741,1.1556,3053.1,3052.0,1.11066539]
[1752588013939,0.1632,3053.2,3053.1,3.27527021]
[1752588014255,5.585,3053.2,3052.7,1.0779]
[1752588014454,1.64035194,3053.2,3052.9,3.27556263]
[1752588014614,5.585,3053.1,3052.8,0.03275681]
[1752588014814,5.585,3053.1,3053.0,3.43866675]
[1752588015120,5.585,3053.1,3052.8,3.27561033]
[1752588015314,10.8185194,3053.0,3052.7,0.1632]
[1752588015541,10.8185194,3053.0,3052.6,3.27587258]
[1752588015542,5.584,3052.9,3052.6,3.27587258]
[1752588016249,7.35261194,3052.9,3052.5,0.1632]
[1752588016449,7.35261194,3052.9,3052.6,3.2758776]
[1752588016651,10.9817194,3053.0,3052.7,3.27578183]
[1752588016820,5.583,3052.9,3052.7,3.27578183]
[1752588017166,0.583,3052.8,3052.7,3.27578864]
[1752588017312,5.583,3052.8,3052.7,3.27575965]
[1752588017512,10.0,3053.3,3053.0,3.27543034]
[1752588017828,10.0,3053.3,3052.7,0.1632]
[1752588018149,1.0979,3054.0,3053.3,1.0633]
[1752588018312,0.1632,3054.1,3053.3,1.0633]
[1752588018518,1.153,3054.4,3054.1,3.27426575]
[1752588018715,1.153,3054.4,3053.9,3.43767822]
[1752588018716,5.582,3054.3,3053.9,3.43767822]
[1752588019079,5.581,3054.3,3054.1,3.27428702]
[1752588019226,5.581,3054.3,3054.1,3.27427575]
[1752588019427,0.1632,3054.5,3054.1,3.27427575]
[1752588019743,10.8185194,3054.3,3054.0,1.1207]
[1752588019945,5.58,3054.2,3054.0,4.39503472]
[1752588020337,5.58,3054.3,3054.0,4.39505124]
[1752588020536,5.58,3054.3,3054.0,1.1207]
[1752588020737,3.27439032,3055.9,3054.2,3.27417981]
[1752588020953,1.0979,3055.4,3055.0,3.27323716]
[1752588021168,10.8185194,3055.1,3054.5,1.1273]
[1752588021468,5.579,3055.0,3054.6,3.27364392]
[1752588021654,1.0979,3055.4,3054.7,3.27358873]
[1752588021971,1.0979,3055.4,3054.9,3.27336077]
[1752588022137,15.579,3055.3,3054.6,0.55]
[1752588022336,5.578,3055.2,3054.6,0.55]
[1752588022568,1.1616,3055.7,3054.8,0.55]
[1752588022884,1.1616,3055.7,3054.6,0.55]
[1752588023082,1.1616,3055.7,3055.4,3.27281074]
[1752588023267,5.577,3055.6,3054.7,3.27358961]
[1752588023472,0.24648279,3055.8,3054.8,0.58273536]
[1752588023785,10.0,3055.8,3054.8,0.58273536]
[1752588023969,5.576,3055.7,3055.3,3.27291409]
[1752588024173,0.002,3055.9,3055.3,0.55]
[1752588024373,0.002,3055.9,3055.8,3.27246547]
[1752588025097,0.002,3055.9,3055.8,11.44863732]
[1752588025098,1e-08,3055.9,3055.8,11.44863732]
[1752588025394,0.002,3057.2,3056.5,1.0694]
[1752588025544,0.002,3057.2,3057.1,4.89047389]
[1752588025752,0.002,3057.2,3057.1,4.92318462]